fUSD/lending_fUSD_20260416
["ID","MTS","AMOUNT","RATE_DAILY","PERIOD"]
[420610433,1776330632710,-151.0,0.0001,2]
[420610434,1776330632720,-151.0,0.0001,2]
[420610435,1776330632730,-151.0,0.0001,2]
[420610436,1776330632740,-151.0,0.0001,2]
[420610437,1776330632750,-151.0,0.0001,2]
[420610438,1776330632759,-151.0,0.0001,2]
[420610439,1776330632769,-151.0,0.0001,2]
[420610440,1776330632779,-151.0,0.0001,2]
[420610441,1776330632789,-151.0,0.0001,2]
[420610442,1776330632799,-151.0,0.0001,2]
[420610443,1776330632808,-1351.686,0.0001014,2]
[420610444,1776330632818,-622.0,0.0001014,2]
[420610445,1776330632828,-1265.0,0.0001014,2]
[420610446,1776330632837,-2473.0,0.0001014,2]
[420610447,1776330632847,-416.0,0.0001014,2]
[420610448,1776330632857,-1456.4032,0.000103,2]
[420610449,1776330632867,-675.4368,0.000103,2]
[420610450,1776330632876,-2500.0,0.000103,2]
[420610451,1776330632886,-433.0,0.00010355,2]
[420610452,1776330632895,-320.0,0.00010395,3]
[420610453,1776330632905,-83539.65272772,0.000104,2]
[420610454,1776330632919,-6460.43727228,0.000104,2]
[420610455,1776330632928,-168.3888056,0.00010415,2]
[420610456,1776330632938,-150.0,0.00010437,2]
[420610457,1776330632947,-500.0,0.00010438,2]
[420610458,1776330632956,-302.10287384,0.00010442,2]
[420610459,1776330632966,-352.0,0.00010447,2]
[420610460,1776330632976,-646.51442559,0.00010474,2]
[420610461,1776330632985,-500.0,0.00010474,2]
[420610462,1776330632996,-292.37216748,0.00010474,2]
[420610463,1776330633006,-500.0,0.00010474,2]
[420610464,1776330633015,-500.0,0.00010474,2]
[420610465,1776330633025,-500.0,0.00010474,2]
[420610466,1776330633035,-500.0,0.00010474,2]
[420610467,1776330633044,-500.0,0.00010474,2]
[420610468,1776330633055,-500.0,0.00010474,2]
[420610469,1776330633064,-500.0,0.00010474,2]
[420610470,1776330633073,-500.0,0.00010474,2]
[420610471,1776330633085,-500.0,0.00010474,2]
[420610472,1776330633095,-500.0,0.00010474,2]
[420610473,1776330633105,-536.4400317,0.00010474,2]
[420610474,1776330633115,-500.0,0.00010474,2]
[420610475,1776330633124,-500.0,0.00010474,2]
[420610476,1776330633134,-500.0,0.00010474,2]
[420610477,1776330633144,-500.0,0.00010474,2]
[420610478,1776330633153,-500.0,0.00010474,2]
[420610479,1776330633162,-500.0,0.00010474,2]
[420610480,1776330633172,-500.0,0.00010474,2]
[420610481,1776330633181,-500.0,0.00010474,2]
[420610482,1776330633190,-500.0,0.00010474,2]
[420610483,1776330633200,-500.0,0.00010474,2]
[420610484,1776330633221,-500.0,0.00010474,2]
[420610485,1776330633231,-500.0,0.00010474,2]
[420610486,1776330633240,-500.0,0.00010474,2]
[420610487,1776330633250,-500.0,0.00010474,2]
[420610488,1776330633259,-500.0,0.00010474,2]
[420610489,1776330633269,-500.0,0.00010474,2]
[420610490,1776330633279,-500.0,0.00010474,2]
[420610491,1776330633288,-500.0,0.00010474,2]
[420610492,1776330633299,-500.0,0.00010474,2]
[420610493,1776330633308,-500.0,0.00010474,2]
[420610494,1776330633318,-500.0,0.00010474,2]
[420610495,1776330633328,-500.0,0.00010474,2]
[420610496,1776330633337,-299.99,0.00010475,2]
[420610497,1776330633351,-150.99,0.00010475,2]
[420610498,1776330633361,-9999.99,0.00010475,2]
[420610499,1776330633370,-1192.47,0.00010475,2]
[420610500,1776330633380,-2246.1,0.00010475,2]
[420610501,1776330633389,-9999.99,0.00010475,2]
[420610502,1776330633399,-25337.05747871,0.00010475,2]
[420610503,1776330633411,-2699.45252129,0.00010475,2]
[420610504,1776330633421,-6218.5274931,0.00010475,2]
[420610505,1776330633437,-1421.69894956,0.00010475,2]
[420610506,1776330633448,-607.56498033,0.00010475,2]
[420610507,1776330633460,-759.87220332,0.00010475,2]
[420610508,1776330633472,-992.32637369,0.00010475,2]
[420610509,1776330633481,-158.0,0.00010512,3]
[420610510,1776330633491,-160.0,0.00010529,2]
[420610511,1776330633502,-352.0,0.00010572,2]
[420610512,1776330633511,-138.9601133,0.00010779,2]
[420610513,1776330633536,-313.0223537,0.00010779,2]
[420610514,1776330633546,-196.655093,0.00010779,2]
[420610515,1776330633555,-596.96446645,0.00010779,2]
[420610516,1776330633567,-391.88,0.00010779,2]
[420610517,1776330633578,-2114.8037051,0.00010779,2]
[420610518,1776330633597,-1258.9,0.00010779,2]
[420610519,1776330633609,-323.72311745,0.00010779,2]
[420610520,1776330633619,-10.61941523,0.00010779,2]
[420610521,1776330636032,152.0,8.291e-05,7]
[420610578,1776330640158,-152.0,8.561e-05,7]
[420610579,1776330640168,-842.44344777,0.00010779,2]
[420610580,1776330640177,-2247.675916,0.00010779,2]
[420610581,1776330640186,-418.7,0.000108,2]
[420610582,1776330640195,-230.29356324,0.00010899,2]
[420610583,1776330640205,-819.74548224,0.00010908,2]
[420610584,1776330640214,-2000.0,0.00010959,2]
[420610585,1776330640224,-200.0,0.00010959,2]
[420610586,1776330640233,-150.0,0.00010959,2]
[420610587,1776330640243,-174.61919141,0.00010963,2]
[420610588,1776330640252,-150.0,0.00010986,2]
[420610589,1776330640262,-150.0,0.00010986,2]
[420610590,1776330640271,-150.0,0.00010986,2]
[420610591,1776330640280,-150.0,0.00010986,2]
[420610592,1776330640290,-225.30790855,0.00010989,2]
[420610593,1776330640299,-151.0,0.00010995,2]
[420610594,1776330640308,-500.0,0.00010998,2]
[420610595,1776330640317,-500.0,0.00010998,2]
[420610596,1776330640327,-500.0,0.00010998,2]
[420610597,1776330640336,-549.3849511,0.00010998,2]
[420610598,1776330640345,-318.41112269,0.00010998,2]
[420610599,1776330640355,-500.0,0.00010998,2]
[420610600,1776330640364,-500.0,0.00010998,2]
[420610601,1776330640374,-198.10741704,0.00010998,2]
[420610602,1776330640384,-250.0,0.00010999,2]
[420610603,1776330640393,-685.0,0.00010999,5]
[420610604,1776330640403,-976.29683384,0.00010999,2]
[420610605,1776330640427,-20820.99609857,0.00010999,2]
[420610606,1776330640439,-410.175902,0.00010999,2]
[420610607,1776330640451,-2890.96426327,0.00010999,2]
[420610608,1776330640462,-2418.07525,0.00010999,2]
[420610609,1776330640505,-317.0,0.00010391,3]
[420610610,1776330640515,-305.153193,0.00010999,2]
[420610611,1776330640529,-809.73291563,0.00010999,2]
[420610612,1776330640853,-229486.8504236,8.459e-05,2]
[420610613,1776330640876,-1831.07688592,8.459e-05,2]
[420610614,1776330640983,-922.18333418,8.459e-05,2]
[420610615,1776330641004,-2934.15058801,8.459e-05,2]
[420610616,1776330641016,-13658.00941468,8.459e-05,2]
[420610620,1776330642857,-10687.4079946,8.459e-05,2]
[420610628,1776330645651,-1614.98690206,8.459e-05,2]
[420610629,1776330645805,-3700.04999916,8.459e-05,2]
[420610632,1776330646411,-2563.63814344,8.459e-05,2]
[420610634,1776330646431,-1016.91454865,8.459e-05,2]
[420610635,1776330646495,-4950.91469702,8.459e-05,2]
[420610639,1776330654355,-851.40308271,8.348e-05,2]
[420610641,1776330908854,-159.0,8.348e-05,3]
[420610642,1776330908885,-263.0,8.348e-05,3]
[420610643,1776330908918,-2155.51993381,8.348e-05,2]
[420610644,1776330908947,-213.57267586,8.348e-05,2]
[420610645,1776330908983,-258.0,8.348e-05,2]
[420610646,1776330965380,250.0,8.348e-05,3]
[420610647,1776331028287,237.0,8.348e-05,3]
[420610648,1776331042710,-1200.0,8.457e-05,2]
[420610649,1776331042732,-260.0,8.457e-05,2]
[420610650,1776331042753,-250.0,8.458e-05,2]
[420610651,1776331042774,-300.0,8.458e-05,2]
[420610652,1776331042795,-300.0,8.458e-05,2]
[420610653,1776331042816,-150.0,8.458e-05,2]
[420610654,1776331042838,-300.0,8.458e-05,2]
[420610655,1776331042862,-7240.0,8.459e-05,2]
[420610656,1776331044052,-10000.0,8.459e-05,2]
[420610657,1776331044662,-10000.0,8.459e-05,2]
[420610658,1776331045019,-10000.0,8.459e-05,2]
[420610659,1776331045456,-10000.0,8.459e-05,2]
[420610660,1776331045909,-10000.0,8.459e-05,2]
[420610661,1776331046370,-10000.0,8.459e-05,2]
[420610662,1776331046734,-10000.0,8.459e-05,2]
[420610663,1776331047165,-10000.0,8.459e-05,2]
[420610664,1776331048430,-10000.0,8.459e-05,2]
[420610665,1776331108682,-213.57267585,8.458e-05,2]
[420610666,1776331108705,-260.0,8.458e-05,2]
[420610667,1776331108728,-225.0,8.459e-05,3]
[420610668,1776331108755,-6727.16179283,8.459e-05,2]
[420610669,1776331214972,-260.0,8.459e-05,2]
[420610670,1776331214996,-214.0,8.459e-05,3]
[420610671,1776331215019,-159.0,8.459e-05,3]
[420610672,1776331215045,-698.57267585,8.459e-05,2]
[420610673,1776331215065,-213.57267585,8.541e-05,2]
[420610674,1776331215088,-250.0,8.541e-05,2]
[420610675,1776331215109,-702.06736685,8.621e-05,2]
[420610676,1776331215132,-152.0,8.626e-05,7]
[420610677,1776331215154,-300.0,8.658e-05,2]
[420610678,1776331215178,-1200.0,8.658e-05,2]
[420610679,1776331215200,-5850.78728145,8.659e-05,2]
[420610680,1776331216047,-10000.0,8.659e-05,2]
[420610681,1776331216873,-10000.0,8.659e-05,2]
[420610682,1776331216968,-10000.0,8.659e-05,2]
[420610683,1776331217350,-10000.0,8.659e-05,2]
[420610684,1776331296283,-8574.34924626,8.359e-05,2]
[420610685,1776331296451,-10000.01,8.359e-05,2]
[420610686,1776331296590,-10000.01,8.359e-05,2]
[420610687,1776331296699,-10000.01,8.359e-05,2]
[420610688,1776331296800,-10000.01,8.359e-05,2]
[420610689,1776331299919,-10000.0,8.359e-05,2]
[420610690,1776331300259,-10000.01,8.359e-05,2]
[420610691,1776331300769,-9043.59875374,8.359e-05,2]
[420610692,1776331300791,-956.40124626,8.659e-05,2]
[420610693,1776331301576,-1340.74730319,8.659e-05,2]
[420610694,1776331301599,-203.0,8.659e-05,3]
[420610695,1776331327130,202.0,8.659e-05,3]
[420610696,1776331502332,252.8356564,8.063e-05,2]
[420610697,1776331533032,-1200.0,8.558e-05,2]
[420610698,1776331533055,-300.0,8.558e-05,2]
[420610699,1776331533077,-300.0,8.558e-05,2]
[420610700,1776331533103,-8200.0,8.559e-05,2]
[420610701,1776331534355,-10000.0,8.559e-05,2]
[420610702,1776331535039,-152.0,8.475e-05,7]
[420610703,1776331535064,-9848.0,8.559e-05,2]
[420610704,1776331535737,-10000.0,8.559e-05,2]
[420610705,1776331536307,-10000.0,8.559e-05,2]
[420610706,1776331536931,-10000.0,8.559e-05,2]
[420610707,1776331537458,-10000.0,8.559e-05,2]
[420610708,1776331538126,-10000.0,8.559e-05,2]
[420610709,1776331538861,-10000.0,8.559e-05,2]
[420610710,1776331538894,150.0,8.063e-05,2]
[420610711,1776331539094,150.0,8.063e-05,2]
[420610712,1776331539153,150.0,8.287e-05,2]
[420610713,1776331539456,150.43891779,8.063e-05,2]
[420610714,1776331544305,150.0,8.063e-05,2]
[420610715,1776331544334,150.0,8.153e-05,2]
[420610716,1776331544374,150.0,8.242e-05,2]
[420610717,1776331544841,150.0,8.063e-05,2]
[420610718,1776331545528,150.94695297,8.063e-05,2]
[420610719,1776331545597,150.0,8.063e-05,2]
[420610720,1776331547266,150.0,8.242e-05,2]
[420610721,1776331551616,150.0,8.063e-05,2]
[420610722,1776331551847,151.13714091,8.063e-05,2]
[420610723,1776331552905,151.3419958,8.063e-05,2]
[420610724,1776331558811,150.0,8.063e-05,2]
[420610725,1776331558882,150.0,8.287e-05,2]
[420610726,1776331559176,150.0,8.063e-05,2]
[420610727,1776331559230,150.0,8.063e-05,2]
[420610728,1776331626303,202.0,8.063e-05,3]
[420610729,1776331638121,192.0,8.063e-05,3]
[420610730,1776331691190,183.0,8.063e-05,3]
[420610731,1776331747238,174.0,8.063e-05,3]
[420610732,1776331805408,159.0,8.063e-05,3]
[420610733,1776331807259,165.0,8.063e-05,3]
[420610734,1776331816422,212.55498381,8.362e-05,30]
[420610735,1776331831792,-150.0,8.332e-05,2]
[420610736,1776331831802,-150.0,8.362e-05,2]
[420610737,1776331831812,-150.0,8.362e-05,2]
[420610738,1776331831822,-150.0,8.421e-05,2]
[420610739,1776331831831,-150.0,8.421e-05,2]
[420610740,1776331831841,-1200.0,8.496e-05,2]
[420610741,1776331831851,-300.0,8.496e-05,2]
[420610742,1776331831860,-150.0,8.496e-05,2]
[420610743,1776331831870,-141140.3153728,8.497e-05,2]
[420610744,1776331831879,-6868.6763607,8.497e-05,2]
[420610745,1776331831890,-152.0,8.498e-05,7]
[420610746,1776331831899,-150.0,8.511e-05,2]
[420610747,1776331831912,-150.0,8.511e-05,2]
[420610748,1776331831922,-150.0,8.511e-05,2]
[420610749,1776331831931,-4052.6988,8.559e-05,2]
[420610750,1776331831941,-150.0,8.595e-05,2]
[420610751,1776331831950,-150.0,8.596e-05,2]
[420610752,1776331831960,-187.021344,8.596e-05,2]
[420610753,1776331831970,-150.0,8.601e-05,2]
[420610754,1776331831979,-150.0,8.601e-05,2]
[420610755,1776331831988,-150.0,8.66e-05,2]
[420610756,1776331831998,-150.0,8.66e-05,2]
[420610757,1776331832007,-150.0,8.69e-05,2]
[420610758,1776331832017,-150.0,8.735e-05,2]
[420610759,1776331832026,-150.0,8.735e-05,2]
[420610760,1776331832036,-150.0,8.78e-05,2]
[420610761,1776331832046,-150.0,8.78e-05,2]
[420610762,1776331832056,-165.0,8.797e-05,3]
[420610763,1776331832065,-150.0,8.869e-05,2]
[420610764,1776331832074,-150.0,8.9e-05,2]
[420610765,1776331832083,-634.57042281,8.943e-05,2]
[420610766,1776331832092,-500.0,8.943e-05,2]
[420610767,1776331832101,-500.0,8.943e-05,2]
[420610768,1776331832111,-500.0,8.943e-05,2]
[420610769,1776331832120,-505.78392458,8.943e-05,2]
[420610770,1776331832129,-500.0,8.943e-05,2]
[420610771,1776331832138,-150.0,8.959e-05,2]
[420610772,1776331832147,-150.0,8.959e-05,2]
[420610773,1776331832156,-150.0,8.959e-05,2]
[420610774,1776331832165,-150.0,8.959e-05,2]
[420610776,1776331832176,-150.0,8.959e-05,2]
[420610778,1776331832187,-150.0,8.959e-05,2]
[420610780,1776331832196,-223.86,8.961e-05,2]
[420610781,1776331832206,-500.0,8.961e-05,2]
[420610782,1776331832216,-500.0,8.961e-05,2]
[420610783,1776331832226,-321.19566699,8.961e-05,2]
[420610785,1776331832237,-500.0,8.961e-05,2]
[420610786,1776331832247,-500.0,8.961e-05,2]
[420610787,1776331832256,-500.0,8.961e-05,2]
[420610788,1776331832266,-150.0,8.961e-05,2]
[420610789,1776331832276,-647.43521935,8.961e-05,2]
[420610790,1776331832286,-647.43521935,8.961e-05,2]
[420610791,1776331832298,-647.43521935,8.961e-05,2]
[420610792,1776331832308,-647.43521935,8.961e-05,2]
[420610793,1776331832318,-647.43521935,8.961e-05,2]
[420610794,1776331832328,-647.43521935,8.961e-05,2]
[420610795,1776331832339,-647.43521935,8.961e-05,2]
[420610796,1776331832349,-647.43521935,8.961e-05,2]
[420610797,1776331832359,-647.43521935,8.961e-05,2]
[420610798,1776331832368,-647.43521935,8.961e-05,2]
[420610799,1776331832379,-647.43521935,8.961e-05,2]
[420610800,1776331832388,-647.43521935,8.961e-05,2]
[420610801,1776331832398,-647.43521935,8.961e-05,2]
[420610802,1776331832407,-647.43521935,8.961e-05,2]
[420610803,1776331832417,-647.43521935,8.961e-05,2]
[420610804,1776331832427,-647.43521935,8.961e-05,2]
[420610806,1776331832437,-647.43521935,8.961e-05,2]
[420610808,1776331832446,-647.43521935,8.961e-05,2]
[420610810,1776331832456,-647.43521935,8.961e-05,2]
[420610812,1776331832466,-647.43521935,8.961e-05,2]
[420610814,1776331832476,-647.43521935,8.961e-05,2]
[420610816,1776331832485,-647.43521935,8.961e-05,2]
[420610818,1776331832495,-647.43521935,8.961e-05,2]
[420610820,1776331832504,-647.43521935,8.961e-05,2]
[420610822,1776331832514,-647.43521935,8.961e-05,2]
[420610824,1776331832523,-647.43521935,8.961e-05,2]
[420610826,1776331832532,-647.43521935,8.961e-05,2]
[420610828,1776331832543,-647.43521935,8.961e-05,2]
[420610831,1776331832552,-647.43521935,8.961e-05,2]
[420610833,1776331832561,-647.43521935,8.961e-05,2]
[420610835,1776331832570,-647.43521935,8.961e-05,2]
[420610837,1776331832579,-647.43521935,8.961e-05,2]
[420610839,1776331832587,-647.43521935,8.961e-05,2]
[420610841,1776331832597,-647.43521935,8.961e-05,2]
[420610843,1776331832606,-647.43521935,8.961e-05,2]
[420610845,1776331832616,-647.43521935,8.961e-05,2]
[420610847,1776331832625,-647.43521935,8.961e-05,2]
[420610849,1776331832635,-647.43521935,8.961e-05,2]
[420610850,1776331832644,-647.43521935,8.961e-05,2]
[420610851,1776331832654,-647.43521935,8.961e-05,2]
[420610852,1776331832664,-647.43521935,8.961e-05,2]
[420610853,1776331832673,-647.43521935,8.961e-05,2]
[420610854,1776331832683,-647.43521935,8.961e-05,2]
[420610855,1776331832693,-647.43521935,8.961e-05,2]
[420610856,1776331832702,-647.43521935,8.961e-05,2]
[420610857,1776331832711,-647.43521935,8.961e-05,2]
[420610858,1776331832720,-647.43521935,8.961e-05,2]
[420610859,1776331832731,-647.43521935,8.961e-05,2]
[420610860,1776331832740,-647.43521935,8.961e-05,2]
[420610861,1776331832750,-647.43521935,8.961e-05,2]
[420610862,1776331832760,-647.43521935,8.961e-05,2]
[420610863,1776331832770,-647.43521935,8.961e-05,2]
[420610864,1776331832780,-647.43521935,8.961e-05,2]
[420610865,1776331832790,-647.43521935,8.961e-05,2]
[420610866,1776331832799,-424.38914153,8.961e-05,2]
[420610867,1776331832809,-632.63670004,8.961e-05,2]
[420610868,1776331832819,-632.63670004,8.961e-05,2]
[420610869,1776331832831,-632.63670004,8.961e-05,2]
[420610870,1776331832840,-632.63670004,8.961e-05,2]
[420610871,1776331832849,-632.63670004,8.961e-05,2]
[420610872,1776331832859,-632.63670004,8.961e-05,2]
[420610873,1776331832869,-632.63670004,8.961e-05,2]
[420610874,1776331832879,-632.63670004,8.961e-05,2]
[420610875,1776331832889,-632.63670004,8.961e-05,2]
[420610876,1776331832900,-632.63670004,8.961e-05,2]
[420610877,1776331832911,-632.63670004,8.961e-05,2]
[420610878,1776331832921,-632.63670004,8.961e-05,2]
[420610879,1776331832931,-632.63670004,8.961e-05,2]
[420610880,1776331832940,-632.63670004,8.961e-05,2]
[420610881,1776331832951,-632.63670004,8.961e-05,2]
[420610882,1776331832961,-632.63670004,8.961e-05,2]
[420610883,1776331832971,-632.63670004,8.961e-05,2]
[420610884,1776331832980,-632.63670004,8.961e-05,2]
[420610885,1776331832990,-632.63670004,8.961e-05,2]
[420610886,1776331832999,-632.63670004,8.961e-05,2]
[420610887,1776331833008,-632.63670004,8.961e-05,2]
[420610888,1776331833018,-632.63670004,8.961e-05,2]
[420610889,1776331833028,-632.63670004,8.961e-05,2]
[420610890,1776331833037,-632.63670004,8.961e-05,2]
[420610891,1776331833047,-632.63670004,8.961e-05,2]
[420610892,1776331833056,-632.63670004,8.961e-05,2]
[420610893,1776331833065,-632.63670004,8.961e-05,2]
[420610894,1776331833074,-632.63670004,8.961e-05,2]
[420610895,1776331833083,-632.63670004,8.961e-05,2]
[420610896,1776331833093,-143279.1154023,8.962e-05,2]
[420610897,1776331833107,-18843.80324879,8.962e-05,2]
[420610898,1776331833119,-63017.62366658,8.962e-05,2]
[420610899,1776331833131,-51311.17037029,8.962e-05,2]
[420610900,1776331833185,-34655.82135616,8.962e-05,2]
[420610904,1776331838236,-1105.22732195,8.962e-05,2]
[420610905,1776331838317,-1997.20121288,8.962e-05,2]
[420610906,1776331838377,-496.39233885,8.962e-05,2]
[420610907,1776331839038,-2936.5044634,8.962e-05,2]
[420610912,1776331842742,-787.67,8.962e-05,2]
[420610915,1776331842841,-259.39905185,8.962e-05,2]
[420610916,1776331842853,-946.05260061,8.962e-05,2]
[420610920,1776331843300,-673.3310658,8.962e-05,2]
[420610921,1776331843312,-562.39994,8.962e-05,2]
[420610922,1776331843325,-345.0,8.962e-05,2]
[420610923,1776331843462,-666.66,8.962e-05,2]
[420610926,1776331846038,-14997.48861076,8.962e-05,2]
[420610927,1776331846100,-2310.45019004,8.962e-05,2]
[420610928,1776331846643,-2666.32079483,8.962e-05,2]
[420610929,1776331846683,-6284.13982957,8.962e-05,2]
[420610932,1776331888624,168.03,7.13e-05,2]
[420610933,1776331909551,1596.68,8.308e-05,2]
[420610934,1776331927935,157.0,8.308e-05,3]
[420610935,1776331985743,157.0,8.308e-05,3]
[420610936,1776332044697,157.0,8.308e-05,3]
[420610937,1776332105451,159.0,8.308e-05,3]
[420610938,1776332106080,157.0,8.308e-05,3]
[420610939,1776332123598,1500.0,8.248e-05,2]
[420610940,1776332153224,5719.45,8.248e-05,2]
[420610941,1776332166699,157.0,8.308e-05,3]
[420610942,1776332178769,1925.08,8.256e-05,2]
[420610943,1776332226246,68.48,8.308e-05,3]
[420610944,1776332226268,88.52,8.308e-05,3]
[420610945,1776332283299,1600.0,8.243e-05,2]
[420610946,1776332289044,157.0,8.308e-05,3]
[420610949,1776332347246,157.0,8.308e-05,3]
[420610950,1776332415536,157.0,8.308e-05,3]
[420610951,1776332467384,157.0,8.308e-05,3]
[420610952,1776332526808,157.0,8.308e-05,3]
[420610953,1776332530080,158.0,8.308e-05,3]
[420610954,1776332584790,157.0,8.308e-05,3]
[420610955,1776332646244,157.0,8.308e-05,3]
[420610956,1776332707414,157.0,8.308e-05,3]
[420610957,1776332749957,1852.42,8.238e-05,2]
[420610958,1776332768413,157.0,8.308e-05,3]
[420610959,1776332825375,4888.07,8.238e-05,2]
[420610960,1776332825406,5230.07,8.238e-05,2]
[420610961,1776332826805,157.0,8.308e-05,3]
[420610962,1776332888219,157.0,8.308e-05,3]
[420610963,1776332953167,157.0,8.308e-05,3]
[420610964,1776332988834,4298.94,8.198e-05,2]
[420610965,1776332988858,4710.04,8.198e-05,2]
[420610966,1776333032120,-1200.0,8.66e-05,2]
[420610967,1776333032130,-300.0,8.66e-05,2]
[420610968,1776333032140,-262.0,8.661e-05,2]
[420610969,1776333032149,-7989.38826439,8.661e-05,2]
[420610970,1776333032173,-4800.00394769,8.661e-05,2]
[420610971,1776333032185,-7210.62778792,8.661e-05,2]
[420610972,1776333032194,-2500.0,8.662e-05,2]
[420610973,1776333032204,-500.0,8.743e-05,2]
[420610974,1776333032213,-500.0,8.743e-05,2]
[420610975,1776333032223,-501.86196635,8.743e-05,2]
[420610976,1776333032232,-500.32969981,8.743e-05,2]
[420610977,1776333032242,-160.05223081,8.743e-05,2]
[420610978,1776333032252,-160.05871695,8.743e-05,2]
[420610979,1776333032266,-349.34400429,8.743e-05,2]
[420610980,1776333032276,-501.59359258,8.743e-05,2]
[420610981,1776333032285,-500.0,8.743e-05,2]
[420610982,1776333032295,-165.22002035,8.743e-05,2]
[420610983,1776333032305,-250.0,8.761e-05,2]
[420610984,1776333032315,-155.0,8.761e-05,2]
[420610985,1776333032324,-191.12975668,8.761e-05,2]
[420610986,1776333032336,-262.02687277,8.761e-05,2]
[420610987,1776333032348,-546.84337055,8.761e-05,2]
[420610988,1776333032358,-1000.0,8.761e-05,2]
[420610989,1776333032367,-500.0,8.761e-05,2]
[420610990,1776333032376,-612.91159404,8.761e-05,2]
[420610991,1776333032386,-500.0,8.761e-05,2]
[420610992,1776333032396,-500.0,8.761e-05,2]
[420610993,1776333032405,-500.0,8.761e-05,2]
[420610994,1776333032414,-500.0,8.761e-05,2]
[420610995,1776333032426,-500.0,8.761e-05,2]
[420610996,1776333032436,-428.60893541,8.761e-05,2]
[420610997,1776333032449,-71.39106459,8.761e-05,2]
[420610998,1776333032461,-500.0,8.761e-05,2]
[420610999,1776333032471,-500.0,8.761e-05,2]
[420611000,1776333032482,-500.0,8.761e-05,2]
[420611001,1776333032493,-500.0,8.761e-05,2]
[420611002,1776333032503,-500.0,8.761e-05,2]
[420611003,1776333032512,-460.47209461,8.761e-05,2]
[420611005,1776333032532,-39.52790539,8.761e-05,2]
[420611007,1776333032541,-500.0,8.761e-05,2]
[420611009,1776333032551,-316.55892153,8.761e-05,2]
[420611011,1776333032563,-183.44107847,8.761e-05,2]
[420611013,1776333032574,-500.0,8.761e-05,2]
[420611015,1776333032584,-500.0,8.761e-05,2]
[420611017,1776333032594,-236.37160267,8.761e-05,2]
[420611021,1776333032623,-263.62839733,8.761e-05,2]
[420611023,1776333032633,-373.0225617,8.761e-05,2]
[420611026,1776333032649,-126.9774383,8.761e-05,2]
[420611027,1776333032664,-464.89059054,8.761e-05,2]
[420611033,1776333041477,-152.0,8.464e-05,7]
[420611034,1776333041487,-35.10940946,8.761e-05,2]
[420611035,1776333041496,-488.91155054,8.761e-05,2]
[420611036,1776333041512,-11.08844946,8.761e-05,2]
[420611037,1776333041521,-500.0,8.761e-05,2]
[420611038,1776333041531,-500.0,8.761e-05,2]
[420611039,1776333041541,-500.0,8.761e-05,2]
[420611040,1776333041550,-75.75309888,8.761e-05,2]
[420611041,1776333041563,-424.24690112,8.761e-05,2]
[420611042,1776333041573,-392.00020968,8.761e-05,2]
[420611043,1776333041583,-500.0,8.761e-05,2]
[420611044,1776333041592,-500.0,8.761e-05,2]
[420611045,1776333041602,-500.0,8.761e-05,2]
[420611046,1776333041611,-500.0,8.761e-05,2]
[420611047,1776333041620,-410.46120075,8.761e-05,2]
[420611048,1776333041630,-15.65484868,8.761e-05,2]
[420611049,1776333041642,-326.22671314,8.761e-05,2]
[420611050,1776333041653,-158.11843818,8.761e-05,2]
[420611051,1776333041663,-500.0,8.761e-05,2]
[420611052,1776333041672,-500.0,8.761e-05,2]
[420611053,1776333041681,-500.0,8.761e-05,2]
[420611054,1776333041691,-500.0,8.761e-05,2]
[420611055,1776333041700,-500.0,8.761e-05,2]
[420611056,1776333041710,-211.11585419,8.761e-05,2]
[420611057,1776333041719,-500.0,8.761e-05,2]
[420611058,1776333041729,-500.0,8.761e-05,2]
[420611059,1776333041738,-500.0,8.761e-05,2]
[420611060,1776333041747,-500.0,8.761e-05,2]
[420611061,1776333041756,-500.0,8.761e-05,2]
[420611062,1776333041766,-561.82191948,8.761e-05,2]
[420611063,1776333041775,-500.0,8.761e-05,2]
[420611064,1776333041784,-500.0,8.761e-05,2]
[420611065,1776333041794,-296.89710409,8.761e-05,2]
[420611066,1776333041803,-316.87399315,8.761e-05,2]
[420611067,1776333041812,-194.98541578,8.761e-05,2]
[420611068,1776333041821,-1061.86623377,8.762e-05,2]